[Event "Schack-SM 2023: Mastarklassen-elit"]
[Site "Helsingborg Arena, Mellersta Stenbocksgatan 14, Helsingborg, Sweden"]
[Date "2023.07.01"]
[Round "1.4"]
[White "Soderstrom, Adrian"]
[Black "Lind, Jan-Olov"]
[Result "1/2-1/2"]
[TimeControl "90 minutes for 40 moves + 30 minutes for the rest of games + 30 seconds per move from move one."]
[WhiteTitle "FM"]
[WhiteElo "2311"]
[BlackElo "2191"]

1. d4 {[%clk 01:30:56]} {[%emt 00:00:03]} Nf6 {[%clk 01:30:12]} {[%emt
00:00:49]} 2. c4 {[%clk 01:31:19]} {[%emt 00:00:07]} g6 {[%clk 01:30:34]}
{[%emt 00:00:08]} 3. Nc3 {[%clk 01:31:38]} {[%emt 00:00:12]} Bg7 {[%clk
01:30:58]} {[%emt 00:00:05]} 4. e4 {[%clk 01:32:02]} {[%emt 00:00:06]} d6
{[%clk 01:31:24]} {[%emt 00:00:04]} 5. Be2 {[%clk 01:32:26]} {[%emt 00:00:07]}
O-O {[%clk 01:31:44]} {[%emt 00:00:09]} 6. Be3 {[%clk 01:32:47]} {[%emt
00:00:10]} Na6 {[%clk 01:31:18]} {[%emt 00:00:56]} 7. h4 {[%clk 01:32:45]}
{[%emt 00:00:32]} c5 {[%clk 01:28:51]} {[%emt 00:02:56]} 8. d5 {[%clk
01:31:34]} {[%emt 00:01:42]} e6 {[%clk 01:28:44]} {[%emt 00:00:37]} 9. dxe6
{[%clk 01:31:15]} {[%emt 00:00:49]} Bxe6 {[%clk 01:28:35]} {[%emt 00:00:39]} 10.
h5 {[%clk 01:30:19]} {[%emt 00:01:26]} Qa5 {[%clk 01:14:52]} {[%emt 00:14:13]}
11. Bd2 {[%clk 01:17:49]} {[%emt 00:13:00]} Qb6 {[%clk 01:05:24]} {[%emt
00:09:57]} 12. h6 {[%clk 01:13:35]} {[%emt 00:04:45]} Bh8 {[%clk 01:05:38]}
{[%emt 00:00:15]} 13. Nh3 {[%clk 01:12:51]} {[%emt 00:01:14]} Nb4 {[%clk
00:59:07]} {[%emt 00:07:02]} 14. Nf4 {[%clk 00:59:59]} {[%emt 00:13:22]} Nc6
{[%clk 00:56:47]} {[%emt 00:02:49]} 15. O-O {[%clk 00:55:15]} {[%emt 00:05:14]}
Nd4 {[%clk 00:49:02]} {[%emt 00:08:16]} 16. Rb1 {[%clk 00:51:45]} {[%emt
00:04:00]} Qd8 {[%clk 00:46:20]} {[%emt 00:03:12]} 17. Be3 {[%clk 00:46:46]}
{[%emt 00:05:29]} Nxe2+ {[%clk 00:36:32]} {[%emt 00:10:18]} 18. Qxe2 {[%clk
00:47:08]} {[%emt 00:00:08]} Ng4 {[%clk 00:35:01]} {[%emt 00:02:01]} 19. Ncd5
{[%clk 00:29:02]} {[%emt 00:18:36]} Qh4 {[%clk 00:30:31]} {[%emt 00:04:59]} 20.
Nh3 {[%clk 00:29:11]} {[%emt 00:00:21]} Nxe3 {[%clk 00:28:28]} {[%emt
00:02:33]} 21. Qxe3 {[%clk 00:27:46]} {[%emt 00:01:56]} Bxd5 {[%clk 00:28:25]}
{[%emt 00:00:33]} 22. cxd5 {[%clk 00:27:49]} {[%emt 00:00:26]} Rfe8 {[%clk
00:28:03]} {[%emt 00:00:53]} 23. Rfe1 {[%clk 00:27:08]} {[%emt 00:01:12]} Re7
{[%clk 00:26:27]} {[%emt 00:02:05]} 24. Re2 {[%clk 00:19:02]} {[%emt 00:08:36]}
Rae8 {[%clk 00:24:17]} {[%emt 00:02:40]} 25. Rbe1 {[%clk 00:19:27]} {[%emt
00:00:05]} Bf6 {[%clk 00:21:09]} {[%emt 00:03:38]} 26. Qf3 {[%clk 00:17:50]}
{[%emt 00:02:07]} Be5 {[%clk 00:20:42]} {[%emt 00:00:56]} 27. Qe3 {[%clk
00:16:19]} {[%emt 00:02:02]} b5 {[%clk 00:19:04]} {[%emt 00:02:08]} 28. b3
{[%clk 00:15:06]} {[%emt 00:01:43]} b4 {[%clk 00:18:08]} {[%emt 00:01:25]} 29.
Rd1 {[%clk 00:10:50]} {[%emt 00:04:46]} Qf6 {[%clk 00:14:41]} {[%emt 00:03:56]}
30. Qf3 {[%clk 00:07:38]} {[%emt 00:03:42]} Qh4 {[%clk 00:11:48]} {[%emt
00:03:24]} 31. Qe3 {[%clk 00:07:45]} {[%emt 00:00:23]} Qf6 {[%clk 00:07:32]}
{[%emt 00:04:45]} 32. Qf3 {[%clk 00:07:33]} {[%emt 00:00:42]} Qh4 {[%clk
00:07:48]} {[%emt 00:00:15]} 1/2-1/2

[Event "Schack-SM 2023: Mastarklassen-elit"]
[Site "Helsingborg Arena, Mellersta Stenbocksgatan 14, Helsingborg, Sweden"]
[Date "2023.07.01"]
[Round "1.5"]
[White "Olund, Joar"]
[Black "Walinder, Lars"]
[Result "1/2-1/2"]
[TimeControl "90 minutes for 40 moves + 30 minutes for the rest of games + 30 seconds per move from move one."]
[WhiteTitle "FM"]
[BlackTitle "FM"]
[WhiteElo "2399"]
[BlackElo "2310"]

1. d4 {[%clk 01:27:49]} {[%emt 00:03:10]} d5 {[%clk 01:29:43]} {[%emt
00:01:17]} 2. Bf4 {[%clk 01:28:14]} {[%emt 00:00:06]} c5 {[%clk 01:29:51]}
{[%emt 00:00:22]} 3. e3 {[%clk 01:28:39]} {[%emt 00:00:06]} Nc6 {[%clk
01:29:42]} {[%emt 00:00:38]} 4. c3 {[%clk 01:29:05]} {[%emt 00:00:04]} Nf6
{[%clk 01:29:44]} {[%emt 00:00:28]} 5. Nd2 {[%clk 01:29:27]} {[%emt 00:00:08]}
cxd4 {[%clk 01:29:51]} {[%emt 00:00:23]} 6. exd4 {[%clk 01:29:52]} {[%emt
00:00:06]} Bf5 {[%clk 01:29:46]} {[%emt 00:00:33]} 7. Qb3 {[%clk 01:29:37]}
{[%emt 00:00:47]} Qc8 {[%clk 01:26:58]} {[%emt 00:03:17]} 8. Ngf3 {[%clk
01:28:13]} {[%emt 00:01:54]} e6 {[%clk 01:25:44]} {[%emt 00:01:44]} 9. Be2
{[%clk 01:27:03]} {[%emt 00:01:40]} h6 {[%clk 01:15:26]} {[%emt 00:10:48]} 10.
O-O {[%clk 01:22:18]} {[%emt 00:05:14]} Be7 {[%clk 01:12:29]} {[%emt 00:03:28]}
11. Rfe1 {[%clk 01:21:31]} {[%emt 00:01:17]} O-O {[%clk 01:11:50]} {[%emt
00:01:08]} 12. Nf1 {[%clk 01:21:23]} {[%emt 00:00:39]} a6 {[%clk 00:59:41]}
{[%emt 00:12:39]} 13. a4 {[%clk 01:21:18]} {[%emt 00:00:36]} Qd7 {[%clk
00:54:43]} {[%emt 00:05:27]} 14. Ng3 {[%clk 01:20:17]} {[%emt 00:01:31]} Bh7
{[%clk 00:47:50]} {[%emt 00:07:23]} 15. Qd1 {[%clk 01:14:33]} {[%emt 00:06:14]}
Ne4 {[%clk 00:45:47]} {[%emt 00:02:33]} 16. Bd3 {[%clk 01:10:11]} {[%emt
00:04:52]} Nxg3 {[%clk 00:45:44]} {[%emt 00:00:33]} 17. hxg3 {[%clk 01:08:09]}
{[%emt 00:02:32]} Bd6 {[%clk 00:39:11]} {[%emt 00:07:02]} 18. Bxh7+ {[%clk
01:04:23]} {[%emt 00:04:17]} Kxh7 {[%clk 00:39:34]} {[%emt 00:00:07]} 19. Qd3+
{[%clk 01:04:29]} {[%emt 00:00:24]} Kg8 {[%clk 00:39:02]} {[%emt 00:01:02]} 20.
Re2 {[%clk 00:59:59]} {[%emt 00:05:00]} Rac8 {[%clk 00:33:50]} {[%emt
00:05:41]} 21. Rae1 {[%clk 00:58:33]} {[%emt 00:01:56]} Ne7 {[%clk 00:27:19]}
{[%emt 00:07:02]} 22. Bxd6 {[%clk 00:58:04]} {[%emt 00:00:59]} Qxd6 {[%clk
00:26:46]} {[%emt 00:01:03]} 23. Ne5 {[%clk 00:58:26]} {[%emt 00:00:08]} Nc6
{[%clk 00:25:17]} {[%emt 00:01:59]} 24. f4 {[%clk 00:57:25]} {[%emt 00:01:31]}
Nxe5 {[%clk 00:25:10]} {[%emt 00:00:36]} 25. Rxe5 {[%clk 00:57:42]} {[%emt
00:00:14]} Qd7 {[%clk 00:19:47]} {[%emt 00:05:53]} 26. f5 {[%clk 00:55:46]}
{[%emt 00:02:26]} exf5 {[%clk 00:18:12]} {[%emt 00:02:05]} 27. Qxf5 {[%clk
00:55:30]} {[%emt 00:00:47]} Rcd8 {[%clk 00:17:25]} {[%emt 00:01:16]} 28. Qf3
{[%clk 00:52:15]} {[%emt 00:03:44]} Qd6 {[%clk 00:13:58]} {[%emt 00:03:57]} 29.
a5 {[%clk 00:47:20]} {[%emt 00:05:26]} Rd7 {[%clk 00:12:54]} {[%emt 00:01:34]}
30. g4 {[%clk 00:45:30]} {[%emt 00:02:20]} Rdd8 {[%clk 00:11:05]} {[%emt
00:02:18]} 31. g5 {[%clk 00:44:20]} {[%emt 00:01:41]} hxg5 {[%clk 00:11:29]}
{[%emt 00:00:06]} 32. Rxg5 {[%clk 00:44:39]} {[%emt 00:00:10]} Rd7 {[%clk
00:10:20]} {[%emt 00:01:40]} 33. Re3 {[%clk 00:40:11]} {[%emt 00:04:58]} g6
{[%clk 00:08:39]} {[%emt 00:02:11]} 34. Ree5 {[%clk 00:27:09]} {[%emt
00:13:32]} Rfd8 {[%clk 00:08:43]} {[%emt 00:00:25]} 35. Rxd5 {[%clk 00:26:28]}
{[%emt 00:01:12]} Qxd5 {[%clk 00:09:02]} {[%emt 00:00:11]} 36. Rxd5 {[%clk
00:26:54]} {[%emt 00:00:03]} Rxd5 {[%clk 00:09:23]} {[%emt 00:00:09]} 37. c4
{[%clk 00:25:39]} {[%emt 00:01:46]} Rxd4 {[%clk 00:05:09]} {[%emt 00:04:44]} 38.
Qxb7 {[%clk 00:24:55]} {[%emt 00:01:14]} Rxc4 {[%clk 00:05:08]} {[%emt
00:00:31]} 39. Qxa6 {[%clk 00:24:38]} {[%emt 00:00:48]} Rb4 {[%clk 00:03:08]}
{[%emt 00:02:29]} 40. Qe2 {[%clk 00:13:09]} {[%emt 00:11:59]} Ra8 {[%clk
00:01:46]} {[%emt 00:01:51]} 41. Qd2 {[%clk 00:11:36]} {[%emt 00:02:04]} Rab8
{[%clk 00:26:31]} {[%emt 00:05:44]} 42. Qd6 {[%clk 00:30:42]} {[%emt 00:11:24]}
Rxb2 {[%clk 00:25:36]} {[%emt 00:01:26]} 43. a6 {[%clk 00:28:46]} {[%emt
00:02:26]} Ra8 {[%clk 00:22:00]} {[%emt 00:04:05]} 44. Qc6 {[%clk 00:26:49]}
{[%emt 00:02:28]} Rbb8 {[%clk 00:22:02]} {[%emt 00:00:27]} 45. Qc7 {[%clk
00:26:26]} {[%emt 00:00:54]} Rb1+ {[%clk 00:21:00]} {[%emt 00:01:31]} 46. Kh2
{[%clk 00:26:09]} {[%emt 00:00:48]} Ra1 {[%clk 00:21:19]} {[%emt 00:00:10]} 47.
Qc6 {[%clk 00:23:49]} {[%emt 00:02:50]} R1xa6 {[%clk 00:21:37]} {[%emt
00:00:12]} 48. Qb7 {[%clk 00:23:59]} {[%emt 00:00:20]} Ra5 {[%clk 00:21:50]}
{[%emt 00:00:18]} 49. Qb4 {[%clk 00:23:33]} {[%emt 00:00:56]} Rh5+ {[%clk
00:21:50]} {[%emt 00:00:29]} 50. Kg3 {[%clk 00:23:56]} {[%emt 00:00:07]} Ra2
{[%clk 00:14:15]} {[%emt 00:08:01]} 51. Qe7 {[%clk 00:22:12]} {[%emt 00:02:18]}
Raa5 {[%clk 00:14:21]} {[%emt 00:00:24]} 52. Qd8+ {[%clk 00:19:57]} {[%emt
00:02:45]} Kg7 {[%clk 00:14:17]} {[%emt 00:00:35]} 53. Qd4+ {[%clk 00:19:52]}
{[%emt 00:00:35]} Kh7 {[%clk 00:14:42]} {[%emt 00:00:05]} 54. Qd8 {[%clk
00:19:37]} {[%emt 00:00:44]} Rad5 {[%clk 00:12:01]} {[%emt 00:03:11]} 55. Qe7
{[%clk 00:17:04]} {[%emt 00:02:52]} Kg7 {[%clk 00:12:23]} {[%emt 00:00:20]} 56.
Kf3 {[%clk 00:15:19]} {[%emt 00:02:15]} Rhe5 {[%clk 00:11:59]} {[%emt
00:00:53]} 57. Qc7 {[%clk 00:15:29]} {[%emt 00:00:20]} Rd3+ {[%clk 00:11:17]}
{[%emt 00:01:12]} 58. Kf4 {[%clk 00:12:46]} {[%emt 00:03:13]} Red5 {[%clk
00:11:40]} {[%emt 00:00:08]} 59. Ke4 {[%clk 00:06:36]} {[%emt 00:06:39]} Rd7
{[%clk 00:09:04]} {[%emt 00:03:07]} 60. Qe5+ {[%clk 00:06:31]} {[%emt
00:00:35]} f6 {[%clk 00:08:46]} {[%emt 00:00:47]} 61. Qc5 {[%clk 00:06:15]}
{[%emt 00:00:46]} R3d6 {[%clk 00:06:35]} {[%emt 00:02:41]} 62. Kf3 {[%clk
00:06:32]} {[%emt 00:00:14]} Rd2 {[%clk 00:06:34]} {[%emt 00:00:31]} 63. g3
{[%clk 00:06:34]} {[%emt 00:00:28]} R7d3+ {[%clk 00:05:49]} {[%emt 00:01:14]}
64. Kg4 {[%clk 00:06:33]} {[%emt 00:00:31]} Rd7 {[%clk 00:05:53]} {[%emt
00:00:26]} 65. Kh3 {[%clk 00:07:01]} {[%emt 00:00:02]} g5 {[%clk 00:05:58]}
{[%emt 00:00:25]} 66. Kg4 {[%clk 00:05:49]} {[%emt 00:01:42]} R2d4+ {[%clk
00:05:55]} {[%emt 00:00:33]} 67. Kh5 {[%clk 00:05:37]} {[%emt 00:00:43]} g4
{[%clk 00:04:56]} {[%emt 00:01:28]} 68. Kh4 {[%clk 00:05:06]} {[%emt 00:01:01]}
R4d5 {[%clk 00:03:56]} {[%emt 00:01:30]} 69. Qc6 {[%clk 00:03:53]} {[%emt
00:01:42]} Rd4 {[%clk 00:03:44]} {[%emt 00:00:43]} 70. Kh5 {[%clk 00:03:04]}
{[%emt 00:01:19]} R7d5+ {[%clk 00:04:02]} {[%emt 00:00:13]} 71. Kh4 {[%clk
00:03:23]} {[%emt 00:00:11]} Rd7 {[%clk 00:03:46]} {[%emt 00:00:45]} 72. Kh5
{[%clk 00:03:48]} {[%emt 00:00:05]} Kf7 {[%clk 00:03:16]} {[%emt 00:01:00]} 73.
Qc2 {[%clk 00:03:27]} {[%emt 00:00:51]} R7d5+ {[%clk 00:03:21]} {[%emt
00:00:25]} 74. Kh4 {[%clk 00:03:26]} {[%emt 00:00:31]} Ke6 {[%clk 00:03:17]}
{[%emt 00:00:34]} 75. Qe4+ {[%clk 00:03:24]} {[%emt 00:00:32]} Kd6 {[%clk
00:03:28]} {[%emt 00:00:19]} 76. Qe6+ {[%clk 00:03:10]} {[%emt 00:00:44]} Kc7
{[%clk 00:03:22]} {[%emt 00:00:37]} 77. Qc6+ {[%clk 00:03:26]} {[%emt
00:00:14]} Kd8 {[%clk 00:03:06]} {[%emt 00:00:45]} 78. Qe8+ {[%clk 00:03:34]}
{[%emt 00:00:23]} Kxe8 {[%clk 00:03:27]} {[%emt 00:00:09]} 1/2-1/2